bitfinex/quotes_BTCUSD_20250213
["timestamp","ask_amount","ask_price","bid_price","bid_amount"]
[1739469435516,3.35029134,95912.0,95911.0,0.0004]
[1739469435916,3.34629134,95912.0,95911.0,0.0004]
[1739469436119,3.33829134,95912.0,95911.0,0.0004]
[1739469436318,3.44779499,95912.0,95911.0,0.0004]
[1739469437067,3.44079499,95912.0,95911.0,0.0004]
[1739469437391,3.33829134,95912.0,95911.0,0.0004]
[1739469437619,3.34129134,95912.0,95911.0,0.0004]
[1739469438112,3.34329134,95912.0,95911.0,0.0004]
[1739469438521,3.34829134,95912.0,95911.0,0.0004]
[1739469438722,3.34829134,95912.0,95911.0,0.0005066]
[1739469438927,3.34329134,95912.0,95911.0,0.0005066]
[1739469439287,3.34829134,95912.0,95911.0,0.0005066]
[1739469439682,3.34329134,95912.0,95911.0,0.0005066]
[1739469439882,3.33829134,95912.0,95911.0,0.0005066]
[1739469440141,3.34629134,95912.0,95911.0,0.0005066]
[1739469440908,3.34329134,95912.0,95911.0,0.0005066]
[1739469441477,3.34129134,95912.0,95911.0,0.0005066]
[1739469441874,3.34629134,95912.0,95911.0,0.0005066]
[1739469445560,3.28125234,95912.0,95911.0,0.0005066]
[1739469445729,2.07186234,95912.0,95911.0,0.0005066]
[1739469445935,1.97186234,95912.0,95911.0,0.0005066]
[1739469446136,1.46045569,95912.0,95911.0,0.0005066]
[1739469446337,0.31447069,95912.0,95911.0,0.0465066]
[1739469446540,0.16147069,95912.0,95911.0,0.0465066]
[1739469446718,0.16347069,95912.0,95911.0,0.0465066]
[1739469446920,0.99313169,95912.0,95911.0,0.0465066]
[1739469447141,0.96500369,95912.0,95911.0,0.0465066]
[1739469447350,0.90886469,95912.0,95911.0,0.0475066]
[1739469447729,0.91286469,95912.0,95911.0,0.0475066]
[1739469448127,0.90886469,95912.0,95911.0,0.0475066]
[1739469451856,0.90886469,95912.0,95911.0,0.0465066]
[1739469452269,0.91186469,95912.0,95911.0,0.0465066]
[1739469452457,0.91086469,95912.0,95911.0,0.0465066]
[1739469452860,0.91086469,95912.0,95911.0,0.0475066]
[1739469453093,0.91086469,95912.0,95911.0,0.0465066]
[1739469453299,1.11587199,95912.0,95911.0,0.0005066]
[1739469453498,1.16136834,95912.0,95911.0,0.0005066]
[1739469454018,0.1,95903.0,95897.0,0.0493]
[1739469454383,0.72449165,95903.0,95895.0,0.00022386]
[1739469454597,0.73804901,95903.0,95895.0,0.00022386]
[1739469454799,3.56736601,95903.0,95895.0,0.00022386]
[1739469455131,3.81736601,95903.0,95895.0,0.00022386]
[1739469455957,3.82236601,95903.0,95895.0,0.00022386]
[1739469456172,3.81736601,95903.0,95895.0,0.00022386]
[1739469456575,3.82236601,95903.0,95895.0,0.00022386]
[1739469456771,3.81736601,95903.0,95895.0,0.00022386]
[1739469456971,3.82436601,95903.0,95902.0,0.00122386]
[1739469457172,3.93186966,95903.0,95902.0,0.00122386]
[1739469457385,3.92486966,95903.0,95902.0,0.00022386]
[1739469457768,3.93186966,95903.0,95902.0,0.00122386]
[1739469458187,3.92486966,95903.0,95902.0,0.00022386]
[1739469458393,3.91986966,95903.0,95902.0,0.00022386]
[1739469458606,3.93186966,95903.0,95902.0,0.00122386]
[1739469458992,3.92686966,95903.0,95902.0,0.00122386]
[1739469459202,3.93186966,95903.0,95902.0,0.00122386]
[1739469459634,3.92486966,95903.0,95902.0,0.00022386]
[1739469459800,3.94593942,95903.0,95902.0,0.00022386]
[1739469460043,3.95293942,95903.0,95902.0,0.00122386]
[1739469460279,0.1,95889.0,95888.0,0.1311]
[1739469460472,3.02027047,95889.0,95888.0,0.1311]
[1739469460671,0.15644,95883.0,95882.0,0.0796]
[1739469460879,2.985757,95883.0,95882.0,0.0796]
[1739469461512,3.08826065,95883.0,95882.0,0.0796]
[1739469461940,0.25894365,95883.0,95882.0,0.08103923]
[1739469462117,3.08826065,95883.0,95882.0,0.08114583]
[1739469462709,2.45369865,95883.0,95882.0,0.08114583]
[1739469462925,2.124518,95883.0,95882.0,0.08114583]
[1739469464273,2.125518,95883.0,95882.0,0.08114583]
[1739469464687,2.124518,95883.0,95882.0,0.08014583]
[1739469464884,1.22526,95883.0,95882.0,0.08014583]
[1739469465509,1.22526,95883.0,95882.0,0.08114583]
[1739469465641,1.22526,95883.0,95882.0,0.08014583]
[1739469466071,1.22526,95883.0,95882.0,0.08114583]
[1739469466271,1.049166,95883.0,95882.0,0.08114583]
[1739469466735,0.262042,95883.0,95882.0,0.08114583]
[1739469466943,0.15644,95883.0,95882.0,0.08114583]
[1739469467362,1.162357,95883.0,95882.0,0.08114583]
[1739469467535,0.15644,95883.0,95882.0,0.08114583]
[1739469467752,1.201176,95883.0,95882.0,0.08114583]
[1739469469058,0.960909,95883.0,95882.0,0.08114583]
[1739469469255,0.960909,95883.0,95882.0,0.08014583]
[1739469469702,0.961909,95883.0,95882.0,0.08114583]
[1739469470345,0.960909,95883.0,95882.0,0.08114583]
[1739469470968,0.516606,95883.0,95882.0,0.08014583]
[1739469471173,0.157311,95883.0,95882.0,0.08014583]
[1739469471324,0.156436,95886.0,95882.0,0.08114583]
[1739469471522,0.516089,95885.0,95882.0,0.08114583]
[1739469471733,0.156437,95885.0,95882.0,0.08114583]
[1739469472355,0.27236,95884.0,95882.0,0.08114583]
[1739469472563,0.27236,95884.0,95882.0,0.08014583]
[1739469472765,0.157435,95886.0,95882.0,0.08014583]
[1739469472966,0.369493,95885.0,95882.0,0.08114583]
[1739469473231,0.369493,95885.0,95883.0,0.20384]
[1739469473456,0.156434,95887.0,95884.0,0.0752]
[1739469473710,0.962793,95886.0,95884.0,0.0752]
[1739469474150,0.156437,95885.0,95884.0,0.0752]
[1739469474355,1.23836,95885.0,95884.0,0.0752]
[1739469474608,1.142909,95885.0,95884.0,0.0752]
[1739469475810,1.142909,95885.0,95884.0,0.0762]
[1739469476548,1.143909,95885.0,95884.0,0.0762]
[1739469479013,1.24641265,95885.0,95884.0,0.001]
[1739469479555,1.4989163,95885.0,95884.0,0.001]
[1739469480760,1.39641265,95885.0,95884.0,0.001]
[1739469481648,1.39541265,95885.0,95884.0,0.001]
[1739469482072,1.40141265,95885.0,95884.0,0.001]
[1739469482200,1.40341265,95885.0,95884.0,0.001]
[1739469482405,0.30644,95883.0,95882.0,0.00054583]
[1739469482613,2.80734165,95883.0,95882.0,0.00054583]
[1739469482821,0.008,95885.0,95883.0,0.0794]
[1739469483028,0.008,95885.0,95884.0,0.284239]
[1739469483446,0.002,95885.0,95884.0,0.284239]
[1739469484463,0.00022408,95889.0,95888.0,0.156432]
[1739469484660,0.00022408,95889.0,95888.0,0.279032]
[1739469485478,0.00122408,95889.0,95888.0,0.279032]
[1739469486453,0.00122408,95889.0,95888.0,0.284032]
[1739469486753,0.156389,95915.0,95912.0,0.0452]
[1739469486900,0.156391,95913.0,95912.0,0.0452]
[1739469487102,0.637395,95913.0,95912.0,0.0452]
[1739469487314,0.97018681,95913.0,95912.0,0.0452]
[1739469487522,0.58973681,95913.0,95912.0,0.0452]
[1739469487771,0.01343281,95913.0,95912.0,0.0452]
[1739469487995,0.16982381,95913.0,95912.0,0.0452]
[1739469488202,0.16982381,95913.0,95846.0,0.417333]
[1739469488203,0.156427,95891.0,95890.0,0.0499]
[1739469488411,0.15643,95889.0,95888.0,0.0853]
[1739469488614,2.284084,95891.0,95880.0,0.0827]
[1739469488615,0.156437,95885.0,95880.0,0.0827]
[1739469488788,2.985754,95885.0,95880.0,0.0827]
[1739469489003,2.764316,95885.0,95880.0,0.0827]
[1739469489335,1.777404,95885.0,95880.0,0.0827]
[1739469489535,1.699061,95885.0,95880.0,0.0827]
[1739469490415,1.480372,95885.0,95880.0,0.0827]
[1739469491398,1.480372,95885.0,95873.0,0.0756]
[1739469491546,1.73287565,95885.0,95871.0,0.0004]
[1739469491745,1.73687565,95885.0,95871.0,0.0004]
[1739469500662,1.73687565,95885.0,95884.0,7e-07]
[1739469500869,0.30644,95883.0,95882.0,3e-07]
[1739469501082,0.156458,95872.0,95871.0,0.0004]
[1739469501281,3.60397565,95872.0,95871.0,0.0004]
[1739469501539,0.156478,95860.0,95859.0,0.0823]
[1739469501768,2.223132,95860.0,95859.0,0.0823]
[1739469501950,2.242745,95860.0,95859.0,0.0823]
[1739469502100,2.14036144,95860.0,95859.0,0.0823]
[1739469502745,1.94077444,95860.0,95859.0,0.0823]
[1739469502950,1.73178044,95860.0,95859.0,0.0823]
[1739469503173,1.7449368,95860.0,95859.0,0.0823]
[1739469503371,1.7449368,95860.0,95859.0,0.0833]
[1739469504264,1.99744045,95860.0,95859.0,0.001]
[1739469504400,1.99744045,95860.0,95838.0,0.0001066]
[1739469504401,0.156501,95846.0,95845.0,0.0802]
[1739469504738,0.15651,95840.0,95839.0,0.0802]
[1739469505030,0.156512,95839.0,95838.0,0.0001066]
[1739469505225,3.04706565,95839.0,95838.0,0.0001066]
[1739469505810,2.805249,95839.0,95838.0,0.0001066]
[1739469505941,1.362636,95839.0,95838.0,0.0001066]
[1739469506820,1.366636,95839.0,95838.0,0.0001066]
[1739469507021,1.362636,95839.0,95838.0,0.0001066]
[1739469507457,1.372636,95839.0,95838.0,0.0001066]
[1739469507857,0.309512,95839.0,95838.0,0.0001066]
[1739469508377,2.288283,95839.0,95838.0,0.0001066]
[1739469508526,2.128309,95839.0,95838.0,0.0001066]
[1739469508737,2.08496293,95839.0,95838.0,0.0001066]
[1739469509293,2.08196293,95839.0,95838.0,0.0001066]
[1739469509617,2.08496293,95839.0,95838.0,0.0001066]
[1739469510589,2.07996293,95839.0,95838.0,0.0001066]
[1739469511029,2.08396293,95839.0,95838.0,0.0001066]
[1739469511435,2.07696293,95839.0,95838.0,0.0001066]
[1739469511873,2.18446658,95839.0,95838.0,0.0001066]
[1739469512856,2.18746658,95839.0,95838.0,0.0001066]
[1739469515301,1.48262593,95839.0,95838.0,0.0001066]
[1739469515500,0.306522,95833.0,95832.0,0.0129359]
[1739469515755,1.346874,95833.0,95832.0,0.0129359]
[1739469515901,1.716274,95833.0,95832.0,0.0129359]
[1739469516101,1.721954,95833.0,95832.0,0.0129359]
[1739469516486,1.73036593,95833.0,95832.0,0.0129359]
[1739469516840,1.30579693,95833.0,95832.0,0.0129359]
[1739469517049,1.30879693,95833.0,95832.0,0.0129359]
[1739469517349,1.15879693,95833.0,95832.0,0.0129359]
[1739469517565,0.44766693,95833.0,95832.0,0.01197118]
[1739469517763,0.01241193,95833.0,95832.0,0.09067118]
[1739469517993,0.16893393,95833.0,95832.0,0.09067118]
[1739469518198,0.01241193,95833.0,95832.0,0.09067118]
[1739469518584,0.00941193,95833.0,95832.0,0.09067118]
[1739469518950,0.16493393,95833.0,95832.0,0.09067118]
[1739469519295,0.28537893,95833.0,95832.0,0.09067118]
[1739469519509,0.28537893,95833.0,95832.0,0.09267118]
[1739469519866,0.28537893,95833.0,95832.0,0.09367118]
[1739469520910,0.28537893,95833.0,95832.0,0.09377788]
[1739469521133,0.00841193,95833.0,95832.0,0.09377788]
[1739469521492,0.16493393,95833.0,95832.0,0.09377788]
[1739469521878,0.00841193,95833.0,95832.0,0.09377788]
[1739469522081,0.00841193,95833.0,95832.0,0.25030088]
[1739469522285,0.00841193,95833.0,95832.0,0.40260453]
[1739469522507,0.08348073,95869.0,95833.0,0.2828]
[1739469522715,0.156484,95857.0,95836.0,0.0498]
[1739469522914,0.156487,95855.0,95849.0,0.1328]
[1739469523140,0.492098,95854.0,95849.0,0.1328]
[1739469523564,0.648586,95854.0,95849.0,0.1328]
[1739469523765,0.156488,95854.0,95849.0,0.1328]
[1739469523940,0.16080604,95860.0,95849.0,0.1328]
[1739469524305,0.156522,95833.0,95832.0,0.01207788]
[1739469524655,0.156522,95833.0,95832.0,0.14487788]
[1739469525476,0.730674,95833.0,95832.0,0.14487788]
[1739469526783,0.138282,95833.0,95832.0,0.14687788]
[1739469526983,0.138282,95836.0,95832.0,0.14687788]
[1739469527187,0.156514,95838.0,95832.0,0.14687788]
[1739469527396,0.14721124,95850.0,95832.0,0.14687788]
[1739469527591,0.156509,95841.0,95834.0,0.0795]
[1739469527845,0.272497,95840.0,95834.0,0.0795]
[1739469528044,0.115986,95839.0,95834.0,0.0795]
[1739469528269,0.122386,95840.0,95834.0,0.0795]
[1739469528479,0.156515,95837.0,95834.0,0.0795]
[1739469528987,0.208665,95847.0,95834.0,0.0795]
[1739469529239,0.156516,95837.0,95834.0,0.0795]
[1739469529791,0.208676,95843.0,95834.0,0.236019]
[1739469529992,0.16108334,95860.0,95843.0,0.0786]
[1739469530278,0.15,95852.0,95843.0,0.0786]
[1739469530569,0.156499,95847.0,95843.0,0.0786]
[1739469530765,0.10132,95846.0,95843.0,0.0786]
[1739469530981,0.156504,95844.0,95843.0,0.0786]
[1739469531158,0.567156,95844.0,95843.0,0.0786]
[1739469531476,0.541029,95844.0,95843.0,0.0786]
[1739469533645,0.542029,95844.0,95843.0,0.0786]
[1739469534268,0.545029,95844.0,95843.0,0.0786]
[1739469534471,0.110317,95844.0,95843.0,0.0786]
[1739469534704,0.004,95844.0,95843.0,0.0786]
[1739469534902,0.208655,95852.0,95843.0,0.0786]
[1739469535169,0.471318,95851.0,95843.0,0.0786]
[1739469535341,1.679788,95857.0,95843.0,0.0786]
[1739469535543,0.156504,95844.0,95843.0,0.0786]
[1739469535774,0.528623,95844.0,95843.0,0.0786]
[1739469535984,1.21384,95852.0,95843.0,0.0786]
[1739469536285,0.208664,95848.0,95843.0,0.0786]
[1739469536460,0.212006,95847.0,95843.0,0.0786]
[1739469536668,0.374997,95849.0,95843.0,0.0786]
[1739469536875,0.156497,95848.0,95843.0,0.0786]
[1739469537082,0.16108334,95860.0,95847.0,0.046]
[1739469537210,0.14038,95858.0,95855.0,0.156486]
[1739469537421,0.006,95852.0,95850.0,0.208659]
[1739469537861,0.006,95852.0,95851.0,0.232892]
[1739469538070,0.0138721,95860.0,95853.0,0.20865]
[1739469538272,0.00722366,95859.0,95856.0,0.156484]
[1739469538474,0.00722366,95859.0,95851.0,0.0764]
[1739469538684,0.00722366,95859.0,95853.0,0.156488]
[1739469538988,0.151486,95858.0,95851.0,0.0764]
[1739469539186,0.001,95852.0,95851.0,0.0764]
[1739469539968,0.00942209,95852.0,95851.0,0.0764]
[1739469540191,0.16591309,95852.0,95851.0,0.0764]
[1739469540369,0.16491309,95852.0,95851.0,0.0764]
[1739469540773,0.00842209,95852.0,95851.0,0.0764]
[1739469541406,0.01042209,95852.0,95851.0,0.0764]
[1739469542138,0.16691309,95852.0,95851.0,0.0764]
[1739469542603,0.01042209,95852.0,95851.0,0.0764]
[1739469542818,0.01042209,95852.0,95851.0,0.232892]
[1739469542972,0.01042209,95852.0,95851.0,0.0764]
[1739469543180,0.01042209,95852.0,95851.0,0.232892]
[1739469543181,0.002,95852.0,95851.0,0.232892]
[1739469543861,0.002,95852.0,95851.0,0.38289565]
[1739469544958,0.00022366,95859.0,95858.0,0.286881]
[1739469546117,0.00022366,95859.0,95858.0,0.38938465]
[1739469546460,0.00022366,95859.0,95858.0,0.39138465]
[1739469546643,0.0086429,95859.0,95858.0,0.39138465]
[1739469547409,0.0086429,95859.0,95858.0,0.39338465]
[1739469549116,0.0086429,95859.0,95858.0,0.23690365]
[1739469549427,0.0086429,95859.0,95858.0,0.39338465]
[1739469558665,0.0086429,95859.0,95858.0,0.23690365]
[1739469558865,0.1651219,95859.0,95858.0,0.1344]
[1739469559072,0.1651219,95859.0,95858.0,0.004]
[1739469559816,0.1651219,95859.0,95858.0,0.002]
[1739469560273,0.156483,95857.0,95853.0,0.0809]
[1739469560468,0.0096429,95859.0,95853.0,0.0809]
[1739469560709,0.156487,95854.0,95853.0,0.0809]
[1739469561690,0.16901272,95854.0,95853.0,0.0809]
[1739469562099,0.17743457,95854.0,95853.0,0.0809]
[1739469562258,0.17743457,95854.0,95853.0,0.0819]
[1739469562467,0.17743457,95854.0,95853.0,0.0809]
[1739469562881,0.17743457,95854.0,95853.0,0.003]
[1739469563508,0.16901272,95854.0,95853.0,0.003]
[1739469564731,0.156487,95854.0,95853.0,0.003]
[1739469564950,0.00022366,95859.0,95853.0,0.003]
[1739469565248,0.0129153,95859.0,95853.0,0.003]
[1739469565513,0.156487,95854.0,95853.0,0.003]
[1739469565713,0.156487,95854.0,95853.0,0.002]
[1739469566042,0.156487,95854.0,95850.0,0.0823]
[1739469566246,0.15649,95853.0,95850.0,0.0823]
[1739469566443,0.156492,95851.0,95850.0,0.0823]
[1739469566651,0.156492,95851.0,95848.0,0.0001065]
[1739469566652,0.156496,95849.0,95848.0,0.0001065]
[1739469567062,2.14222865,95849.0,95848.0,0.0001065]
[1739469567294,1.89401765,95849.0,95848.0,0.0001065]
[1739469567500,1.86679465,95849.0,95848.0,0.0001065]
[1739469568104,1.241819,95849.0,95848.0,0.0001065]
[1739469568338,0.988118,95849.0,95848.0,0.0001065]
[1739469569142,0.993118,95849.0,95848.0,0.0001065]
[1739469569376,0.994118,95849.0,95848.0,0.0001065]
[1739469570127,0.953324,95849.0,95848.0,0.0001065]
[1739469573279,1.05582765,95849.0,95848.0,0.0001065]
[1739469574102,0.26499965,95849.0,95848.0,0.0001065]
[1739469574302,0.27341505,95849.0,95848.0,0.0001065]
[1739469574500,2.27792905,95849.0,95848.0,0.0001065]
[1739469574705,2.26234905,95849.0,95848.0,0.0001065]
[1739469575541,2.41234905,95849.0,95848.0,0.0001065]
[1739469575754,2.42294905,95849.0,95848.0,0.0001065]
[1739469575981,2.78874015,95849.0,95848.0,0.0001065]
[1739469577335,2.80204015,95849.0,95848.0,0.0001065]
[1739469577997,2.79704015,95849.0,95848.0,0.0001065]
[1739469578188,2.79604015,95849.0,95848.0,0.0001065]
[1739469578391,0.406512,95839.0,95838.0,0.0001065]
[1739469578611,3.72720025,95839.0,95838.0,0.0001065]
[1739469579558,3.72820025,95839.0,95838.0,0.0001065]
[1739469580186,3.23933265,95839.0,95838.0,0.0001065]
[1739469580385,1.660524,95839.0,95838.0,0.0001065]
[1739469580593,1.393896,95839.0,95838.0,0.0001065]
[1739469580821,1.0146044,95839.0,95838.0,0.0001065]
[1739469581073,0.8619794,95839.0,95838.0,0.0001065]
[1739469581480,0.0154154,95839.0,95838.0,0.0001065]
[1739469581687,0.1769274,95839.0,95838.0,0.0001065]
[1739469582084,1.2422374,95839.0,95838.0,0.0001065]
[1739469582324,0.9958624,95839.0,95838.0,0.0001065]
[1739469582496,0.8665524,95839.0,95838.0,0.0001065]
[1739469582708,0.858137,95839.0,95838.0,0.0001065]
[1739469582870,0.588799,95839.0,95838.0,0.0001065]
[1739469583078,0.161472,95839.0,95838.0,0.0783065]
[1739469583275,0.012,95839.0,95838.0,0.0783065]
[1739469583716,0.012,95839.0,95838.0,0.2348205]
[1739469583926,0.005,95839.0,95838.0,0.2348205]
[1739469584263,0.00022366,95849.0,95838.0,0.0803065]
[1739469584468,0.587502,95848.0,95838.0,0.0803065]
[1739469584674,0.527133,95848.0,95838.0,0.0823065]
[1739469585143,0.527133,95848.0,95838.0,0.0803065]
[1739469585361,0.208668,95846.0,95838.0,0.0803065]
[1739469585545,0.156506,95843.0,95838.0,0.0803065]
[1739469585772,0.156512,95839.0,95838.0,0.0803065]
[1739469585942,0.156512,95839.0,95838.0,0.0783065]
[1739469586934,0.16491855,95839.0,95838.0,0.0783065]
[1739469587876,0.16491855,95839.0,95838.0,0.0793065]
[1739469588083,0.16491855,95839.0,95838.0,0.0813065]
[1739469588752,0.00840655,95839.0,95838.0,0.0813065]
[1739469588964,0.00840655,95839.0,95838.0,0.2378205]
[1739469589384,0.00840655,95839.0,95838.0,0.0813065]
[1739469589586,0.00840655,95839.0,95838.0,0.2378205]
[1739469590351,0.00840655,95839.0,95838.0,0.0813065]
[1739469591677,0.16491855,95839.0,95838.0,0.0813065]
[1739469592436,0.00840655,95839.0,95838.0,0.0813065]
[1739469593474,0.00840655,95839.0,95838.0,0.2378205]
[1739469593720,0.00840655,95839.0,95838.0,0.0813065]
[1739469594271,0.00840655,95839.0,95838.0,0.0783065]
[1739469594505,0.00840655,95839.0,95838.0,0.0813065]
[1739469594724,0.00840655,95839.0,95838.0,0.0863065]
[1739469598080,0.00840655,95839.0,95838.0,0.18881015]
[1739469598281,0.00840655,95839.0,95838.0,1.20432415]
[1739469600520,0.00840655,95839.0,95838.0,1.42592415]
[1739469600770,0.00840655,95839.0,95838.0,1.43592415]
[1739469601123,0.00022366,95848.0,95847.0,0.156499]
[1739469601326,0.00022366,95848.0,95847.0,0.38550265]
[1739469602930,0.00022366,95848.0,95847.0,0.39050265]
[1739469603136,0.00022366,95848.0,95847.0,0.23400365]
[1739469603348,0.00022366,95848.0,95847.0,0.23800365]
[1739469603747,0.15672066,95848.0,95847.0,0.1355]
[1739469603946,0.15672066,95848.0,95847.0,0.009]
[1739469604728,0.15672066,95848.0,95847.0,0.005]
[1739469605125,0.156507,95842.0,95841.0,0.0814]
[1739469606071,0.01161101,95848.0,95838.0,0.0001065]
[1739469606072,0.156512,95839.0,95838.0,0.0001065]
[1739469607743,0.16489935,95839.0,95838.0,0.0001065]
[1739469608193,0.16489935,95839.0,95838.0,0.0011065]
[1739469608402,0.16489935,95839.0,95838.0,0.0031065]
[1739469610925,0.16489935,95839.0,95838.0,0.0021065]
[1739469611132,0.16489935,95839.0,95838.0,0.0001065]
[1739469611870,0.19781331,95839.0,95838.0,0.0001065]
[1739469612025,0.156523,95833.0,95823.0,0.156537]
[1739469612229,0.156524,95832.0,95823.0,0.156537]
[1739469612436,0.156524,95832.0,95820.0,0.208724]
[1739469612437,0.04830131,95839.0,95826.0,0.0764]
[1739469612640,0.04830131,95839.0,95838.0,0.232914]
[1739469612994,0.02879389,95839.0,95838.0,0.0764]
[1739469613198,0.02179389,95839.0,95838.0,0.232914]
[1739469613808,0.02179389,95839.0,95838.0,0.0764]
[1739469614018,0.00838735,95839.0,95838.0,0.0764]
[1739469614211,0.00838735,95839.0,95838.0,0.232914]
[1739469614419,0.00838735,95839.0,95838.0,0.0774]
[1739469614561,0.16489935,95839.0,95838.0,0.0774]
[1739469614762,0.16489935,95839.0,95838.0,0.001]
[1739469615166,0.208674,95843.0,95838.0,0.001]
[1739469615365,0.156512,95839.0,95838.0,0.003]
[1739469615597,0.156512,95839.0,95838.0,0.001]
[1739469616159,0.156524,95832.0,95830.0,0.0814]
[1739469617100,0.156525,95831.0,95830.0,0.0814]
[1739469617480,0.156522,95833.0,95830.0,0.0814]
[1739469617682,0.156525,95831.0,95830.0,0.0814]
[1739469618060,0.20869,95836.0,95830.0,0.0814]
[1739469618270,0.0195034,95831.0,95830.0,0.0814]
[1739469618659,0.0195034,95831.0,95830.0,0.0824]
[1739469618899,0.0195034,95831.0,95830.0,0.0814]
[1739469619109,0.0195034,95831.0,95830.0,0.34143065]
[1739469619550,0.00043844,95836.0,95830.0,0.10350365]
[1739469619789,0.00043844,95836.0,95835.0,0.238919]
[1739469620002,0.00043844,95836.0,95835.0,0.34142265]
[1739469620204,0.00043844,95836.0,95835.0,0.38762265]
[1739469622846,0.00043844,95836.0,95835.0,0.36495598]
[1739469623104,0.00043844,95836.0,95835.0,0.36895598]
[1739469624079,0.00043844,95836.0,95835.0,1.22795598]
[1739469624935,0.00043844,95836.0,95835.0,0.86575598]
[1739469625168,0.00043844,95836.0,95835.0,0.88575598]
[1739469625621,0.00043844,95836.0,95835.0,0.87575598]
[1739469625884,0.00043844,95836.0,95835.0,0.87175598]
[1739469626164,0.00043844,95836.0,95835.0,0.87775598]
[1739469626363,0.00043844,95836.0,95835.0,0.88975598]
[1739469626784,0.00043844,95836.0,95835.0,0.88475598]
[1739469627012,0.00143844,95836.0,95835.0,0.89175598]
[1739469628106,0.00022366,95848.0,95847.0,0.435599]
[1739469628348,0.00030138,95848.0,95847.0,0.53810265]
[1739469629329,0.00030138,95848.0,95847.0,0.54210265]
[1739469629568,0.00030138,95848.0,95847.0,0.54710265]
[1739469630536,0.00030138,95848.0,95847.0,0.39710265]
[1739469631245,0.00030138,95848.0,95847.0,0.009]
[1739469631722,0.15679838,95848.0,95847.0,0.009]
[1739469632159,0.15679838,95848.0,95847.0,0.005]
[1739469632444,0.15679838,95848.0,95847.0,0.002]
[1739469632445,0.00861625,95848.0,95847.0,0.002]
[1739469632685,0.00861625,95848.0,95847.0,0.005]
[1739469632949,0.16511325,95848.0,95847.0,0.003]
[1739469633180,0.00861625,95848.0,95835.0,0.3731065]
[1739469633430,0.00861625,95848.0,95844.0,0.156503]
[1739469633681,0.00861625,95848.0,95847.0,0.001]
[1739469633947,0.00861625,95848.0,95847.0,0.234699]
[1739469634176,0.00861625,95848.0,95847.0,0.38560265]
[1739469634630,0.00030138,95848.0,95847.0,0.38560265]
[1739469634862,0.00030138,95848.0,95847.0,0.38460265]
[1739469635327,0.00030138,95848.0,95847.0,0.38260265]
[1739469635578,0.00030138,95848.0,95847.0,0.1236]
[1739469635814,0.156507,95842.0,95841.0,0.0761]
[1739469636270,0.208665,95847.0,95835.0,0.4000065]
[1739469636484,0.156517,95836.0,95835.0,0.3239065]
[1739469636897,0.156517,95836.0,95835.0,0.0001065]
[1739469638145,0.16483869,95836.0,95835.0,0.0001065]
[1739469638814,0.16683869,95836.0,95835.0,0.0001065]
[1739469639399,0.16483869,95836.0,95835.0,0.0011065]
[1739469639599,0.16683869,95836.0,95835.0,0.0001065]
[1739469640162,0.01032169,95836.0,95835.0,0.0001065]
[1739469640358,0.16683869,95836.0,95835.0,0.0001065]
[1739469640715,0.01032169,95836.0,95835.0,0.1566255]
[1739469640915,0.00832169,95836.0,95835.0,0.1566255]
[1739469641392,0.01032169,95836.0,95835.0,0.1566255]
[1739469641723,0.00832169,95836.0,95835.0,0.1566255]
[1739469642140,0.01032169,95836.0,95835.0,0.34052915]
[1739469642339,0.01032169,95836.0,95835.0,0.38622915]
[1739469642538,0.00832169,95836.0,95835.0,0.38622915]
[1739469642956,0.01032169,95836.0,95835.0,0.38622915]
[1739469643162,0.01032169,95836.0,95835.0,1.39922915]
[1739469643382,0.002,95836.0,95835.0,1.39922915]
[1739469644218,0.00832169,95847.0,95846.0,0.156501]
[1739469644422,0.00832169,95847.0,95846.0,0.25900465]
[1739469645446,0.00932169,95847.0,95846.0,0.25900465]
[1739469645981,0.00932169,95847.0,95835.0,0.9862065]
[1739469645982,0.00932169,95847.0,95835.0,0.1272065]
[1739469646191,0.14721124,95845.0,95835.0,0.1272065]
[1739469646406,0.00932169,95847.0,95836.0,0.156517]
[1739469646615,0.156501,95846.0,95835.0,0.1272065]
[1739469646989,0.00832169,95846.0,95835.0,0.1272065]
[1739469647198,0.156512,95840.0,95835.0,0.1272065]
[1739469647399,0.00832169,95846.0,95835.0,0.1272065]
[1739469647606,0.20867,95845.0,95835.0,0.1272065]
[1739469647795,0.15651,95840.0,95835.0,0.1272065]
[1739469648244,0.156507,95843.0,95835.0,0.1272065]
[1739469648451,0.00832169,95844.0,95836.0,0.156516]
[1739469648660,0.00832169,95844.0,95835.0,0.1272065]
[1739469648886,0.208676,95843.0,95835.0,0.1272065]
[1739469649100,0.156517,95836.0,95835.0,0.0021065]
[1739469649308,0.156517,95836.0,95835.0,0.0031065]
[1739469649514,0.156517,95836.0,95835.0,0.0021065]
[1739469649920,0.156517,95836.0,95835.0,0.0031065]
[1739469650111,0.156517,95836.0,95835.0,0.0021065]
[1739469650241,0.16483869,95836.0,95835.0,0.0021065]
[1739469650452,0.16483869,95836.0,95835.0,0.0001065]
[1739469651723,0.16683869,95836.0,95835.0,0.0001065]
[1739469653255,0.158517,95836.0,95835.0,0.0001065]
[1739469656741,0.002,95836.0,95835.0,0.0001065]
[1739469657301,0.002,95836.0,95835.0,0.1566255]
[1739469658285,0.002,95836.0,95835.0,0.25912915]
[1739469658495,0.002,95836.0,95835.0,0.38752915]
[1739469658910,0.01033145,95836.0,95835.0,0.53752915]
[1739469659536,0.00833145,95836.0,95835.0,1.07272915]
[1739469659747,0.00833145,95836.0,95835.0,1.07672915]
[1739469659962,0.00833145,95836.0,95835.0,1.07972915]
[1739469660823,0.00833145,95845.0,95844.0,0.156504]
[1739469661030,0.00833145,95845.0,95844.0,0.48450765]
[1739469662291,0.00833145,95845.0,95844.0,0.49050765]
[1739469662496,0.00022366,95846.0,95845.0,0.156502]
[1739469662700,0.00022366,95846.0,95845.0,0.25900565]
[1739469662852,0.00022366,95846.0,95845.0,0.10250365]
[1739469663066,0.00022366,95846.0,95844.0,0.2365]
[1739469663265,0.00022366,95846.0,95845.0,0.156502]
[1739469663691,0.00022366,95846.0,95844.0,0.0865]
[1739469663897,0.00022366,95846.0,95844.0,0.0815]
[1739469664046,0.00022366,95846.0,95845.0,0.156502]
[1739469664263,0.00022366,95846.0,95845.0,0.161502]
[1739469664577,0.00855594,95846.0,95845.0,0.161502]
[1739469664792,0.00855594,95846.0,95845.0,0.01]
[1739469665003,0.00855594,95846.0,95845.0,0.005]